[Event "*** Titled Tuesday Blitz"]
[Site "Chess.com"]
[Date "2020.04.14"]
[Round "5"]
[White "KarstenHansch"]
[Black "Triumphmate"]
[Result "1-0"]
[WhiteElo "2438"]
[BlackElo "2584"]
[TimeControl "180+1"]
[EndTime "10:49:17 PDT"]
[Termination "KarstenHansch won on time"]

1. e4 {[%clk 0:03:00.9]} 1... d5 {[%clk 0:02:34.1]} 2. exd5 {[%clk 0:02:59.1]}
2... Nf6 {[%clk 0:02:35]} 3. d4 {[%clk 0:02:57.4]} 3... Bg4 {[%clk 0:02:35.9]}
4. Be2 {[%clk 0:02:56.2]} 4... Bxe2 {[%clk 0:02:12.3]} 5. Qxe2 {[%clk
0:02:53.6]} 5... Qxd5 {[%clk 0:02:13.2]} 6. Nf3 {[%clk 0:02:53.5]} 6... Nc6
{[%clk 0:02:10]} 7. Nc3 {[%clk 0:02:49.5]} 7... Qd7 {[%clk 0:02:00.8]} 8. O-O
{[%clk 0:02:44.8]} 8... e6 {[%clk 0:01:45.6]} 9. Bg5 {[%clk 0:02:31.6]} 9... Be7
{[%clk 0:01:44.2]} 10. Bxf6 {[%clk 0:02:19]} 10... gxf6 {[%clk 0:01:45.1]} 11.
Rad1 {[%clk 0:02:13.8]} 11... O-O-O {[%clk 0:00:47.4]} 12. d5 {[%clk 0:02:13.5]}
12... Ne5 {[%clk 0:00:45.6]} 13. Nxe5 {[%clk 0:02:08.9]} 13... fxe5 {[%clk
0:00:41.9]} 14. Qxe5 {[%clk 0:02:05.9]} 14... Bd6 {[%clk 0:00:40.8]} 15. Qf6
{[%clk 0:02:01.1]} 15... Rhg8 {[%clk 0:00:39.5]} 16. g3 {[%clk 0:01:58.6]} 16...
h5 {[%clk 0:00:30.1]} 17. dxe6 {[%clk 0:01:54.8]} 17... fxe6 {[%clk 0:00:31]}
18. Ne4 {[%clk 0:01:53.5]} 18... Rdf8 {[%clk 0:00:21.8]} 19. Qd4 {[%clk
0:01:44.4]} 19... h4 {[%clk 0:00:18.3]} 20. Qxa7 {[%clk 0:01:33.4]} 20... Kd8
{[%clk 0:00:15.1]} 21. Nc5 {[%clk 0:01:27.4]} 1-0

[Event "*** Titled Tuesday Blitz"]
[Site "Chess.com"]
[Date "2020.04.14"]
[Round "5"]
[White "nocnypako"]
[Black "crazy_but_lazy"]
[Result "1-0"]
[WhiteElo "2594"]
[BlackElo "2404"]
[TimeControl "180+1"]
[EndTime "10:49:20 PDT"]
[Termination "nocnypako won by resignation"]

1. d4 {[%clk 0:03:00.9]} 1... Nf6 {[%clk 0:02:59.6]} 2. c4 {[%clk 0:02:49]} 2...
e6 {[%clk 0:02:59.2]} 3. Nc3 {[%clk 0:02:49.3]} 3... Bb4 {[%clk 0:02:58]} 4. e3
{[%clk 0:02:49.5]} 4... O-O {[%clk 0:02:56.2]} 5. Ne2 {[%clk 0:02:41.8]} 5...
Re8 {[%clk 0:02:56.4]} 6. a3 {[%clk 0:02:42.3]} 6... Bf8 {[%clk 0:02:53.5]} 7.
d5 {[%clk 0:02:42.9]} 7... exd5 {[%clk 0:02:45.5]} 8. cxd5 {[%clk 0:02:43.8]}
8... a6 {[%clk 0:02:46.2]} 9. a4 {[%clk 0:02:40.7]} 9... a5 {[%clk 0:02:45.5]}
10. Nf4 {[%clk 0:02:40]} 10... Na6 {[%clk 0:02:32.1]} 11. Be2 {[%clk 0:02:39.7]}
11... d6 {[%clk 0:02:26.8]} 12. O-O {[%clk 0:02:39.3]} 12... Nb4 {[%clk
0:02:26.5]} 13. f3 {[%clk 0:02:38.8]} 13... g6 {[%clk 0:01:54.3]} 14. e4 {[%clk
0:02:36]} 14... Bg7 {[%clk 0:01:54.6]} 15. g3 {[%clk 0:02:29.2]} 15... c6 {[%clk
0:01:33.1]} 16. Re1 {[%clk 0:02:05.5]} 16... Qb6+ {[%clk 0:01:06.3]} 17. Kg2
{[%clk 0:02:00.9]} 17... cxd5 {[%clk 0:01:06.7]} 18. Ncxd5 {[%clk 0:01:56.5]}
18... Nfxd5 {[%clk 0:01:06.2]} 19. Nxd5 {[%clk 0:01:55.4]} 19... Nxd5 {[%clk
0:01:05.6]} 20. Qxd5 {[%clk 0:01:55.9]} 20... Be6 {[%clk 0:01:06]} 21. Qb5
{[%clk 0:01:56]} 21... Qxb5 {[%clk 0:00:53.2]} 22. Bxb5 {[%clk 0:01:56.9]} 22...
Rec8 {[%clk 0:00:53.3]} 23. Re2 {[%clk 0:01:50.5]} 23... d5 {[%clk 0:00:47.8]}
24. exd5 {[%clk 0:01:45.6]} 24... Bxd5 {[%clk 0:00:48.7]} 25. Bf4 {[%clk
0:01:44.1]} 25... Bc4 {[%clk 0:00:34.1]} 26. Bxc4 {[%clk 0:01:39.3]} 26... Rxc4
{[%clk 0:00:35]} 27. Rae1 {[%clk 0:01:33.7]} 27... h5 {[%clk 0:00:28.2]} 28. b3
{[%clk 0:01:32.9]} 28... Rb4 {[%clk 0:00:21.8]} 29. Re3 {[%clk 0:01:31.5]} 29...
Rc8 {[%clk 0:00:17.4]} 30. Bd6 {[%clk 0:01:29]} 30... Bf6 {[%clk 0:00:17.3]} 31.
Bxb4 {[%clk 0:01:27.9]} 31... axb4 {[%clk 0:00:18.2]} 32. Re8+ {[%clk
0:01:28.1]} 32... Rxe8 {[%clk 0:00:18.6]} 33. Rxe8+ {[%clk 0:01:28.7]} 33... Kg7
{[%clk 0:00:19.5]} 34. Rb8 {[%clk 0:01:29.2]} 1-0

[Event "*** Titled Tuesday Blitz"]
[Site "Chess.com"]
[Date "2020.04.14"]
[Round "5"]
[White "ChessQueen"]
[Black "Azerichess"]
[Result "0-1"]
[WhiteElo "2805"]
[BlackElo "3013"]
[TimeControl "180+1"]
[EndTime "10:49:21 PDT"]
[Termination "Azerichess won by resignation"]

1. e4 {[%clk 0:03:00.9]} 1... c6 {[%clk 0:03:00.1]} 2. Nc3 {[%clk 0:03:00]} 2...
d5 {[%clk 0:03:00.2]} 3. Nf3 {[%clk 0:03:00.4]} 3... Bg4 {[%clk 0:03:00.7]} 4.
h3 {[%clk 0:03:00.3]} 4... Bxf3 {[%clk 0:03:01]} 5. Qxf3 {[%clk 0:03:00.6]} 5...
e6 {[%clk 0:03:01.6]} 6. g3 {[%clk 0:03:00.7]} 6... Bc5 {[%clk 0:02:59.6]} 7.
Bg2 {[%clk 0:02:58.1]} 7... Nd7 {[%clk 0:02:58.8]} 8. O-O {[%clk 0:02:55.6]}
8... Ngf6 {[%clk 0:02:54.9]} 9. d3 {[%clk 0:02:43]} 9... O-O {[%clk 0:02:53.7]}
10. Kh2 {[%clk 0:02:38.4]} 10... a5 {[%clk 0:02:49.5]} 11. Qe2 {[%clk
0:02:37.6]} 11... dxe4 {[%clk 0:02:47.4]} 12. Nxe4 {[%clk 0:02:34.3]} 12... Nxe4
{[%clk 0:02:46.8]} 13. dxe4 {[%clk 0:02:35.2]} 13... e5 {[%clk 0:02:45.1]} 14.
Bd2 {[%clk 0:02:28.1]} 14... Qb6 {[%clk 0:02:37.8]} 15. Bc3 {[%clk 0:02:24.9]}
15... Bb4 {[%clk 0:02:37.7]} 16. Qc4 {[%clk 0:02:17.7]} 16... Rfd8 {[%clk
0:02:33.2]} 17. a3 {[%clk 0:02:16.1]} 17... Bxc3 {[%clk 0:02:30.5]} 18. Qxc3
{[%clk 0:02:17]} 18... Qc5 {[%clk 0:02:28.7]} 19. Qxc5 {[%clk 0:01:45]} 19...
Nxc5 {[%clk 0:02:27.6]} 20. Rad1 {[%clk 0:01:25.3]} 20... Na4 {[%clk 0:02:23]}
21. b3 {[%clk 0:01:08.6]} 21... Nc3 {[%clk 0:02:21.5]} 22. Rc1 {[%clk
0:00:52.8]} 22... Rd2 {[%clk 0:02:10.7]} 23. Bf3 {[%clk 0:00:53.1]} 23... a4
{[%clk 0:02:08.2]} 24. Kg2 {[%clk 0:00:50.1]} 24... Kf8 {[%clk 0:02:02.1]} 25.
Rfe1 {[%clk 0:00:49.9]} 25... Nb5 {[%clk 0:01:53.5]} 26. c4 {[%clk 0:00:36.7]}
26... Nxa3 {[%clk 0:01:39.9]} 27. bxa4 {[%clk 0:00:34.7]} 27... Rxa4 {[%clk
0:01:19.5]} 28. Ra1 {[%clk 0:00:34.7]} 28... Nc2 {[%clk 0:01:17.6]} 29. Rxa4
{[%clk 0:00:33.4]} 29... Nxe1+ {[%clk 0:01:17.2]} 0-1

[Event "*** Titled Tuesday Blitz"]
[Site "Chess.com"]
[Date "2020.04.14"]
[Round "5"]
[White "vlad_Sid"]
[Black "Fandorine"]
[Result "0-1"]
[WhiteElo "2648"]
[BlackElo "2910"]
[TimeControl "180+1"]
[EndTime "10:49:24 PDT"]
[Termination "Fandorine won by checkmate"]

1. c4 {[%clk 0:03:00.9]} 1... g6 {[%clk 0:02:58.7]} 2. g3 {[%clk 0:03:01.4]}
2... Bg7 {[%clk 0:02:58.8]} 3. Bg2 {[%clk 0:03:02.3]} 3... Nc6 {[%clk
0:02:52.8]} 4. Nc3 {[%clk 0:03:01.8]} 4... e5 {[%clk 0:02:51.9]} 5. Nf3 {[%clk
0:03:02.1]} 5... d6 {[%clk 0:02:45.6]} 6. O-O {[%clk 0:03:01.6]} 6... Nge7
{[%clk 0:02:43.8]} 7. Rb1 {[%clk 0:02:58.7]} 7... Be6 {[%clk 0:02:32.5]} 8. d3
{[%clk 0:02:57.7]} 8... h6 {[%clk 0:02:21.6]} 9. b4 {[%clk 0:02:56.5]} 9... O-O
{[%clk 0:02:21]} 10. b5 {[%clk 0:02:54.9]} 10... Nb8 {[%clk 0:02:20.6]} 11. Nd2
{[%clk 0:02:52.1]} 11... Qc8 {[%clk 0:02:20.1]} 12. Re1 {[%clk 0:02:51.1]} 12...
Nd7 {[%clk 0:02:19.4]} 13. Qc2 {[%clk 0:02:48.6]} 13... f5 {[%clk 0:02:18.4]}
14. a4 {[%clk 0:02:48.1]} 14... Rb8 {[%clk 0:02:06.8]} 15. Nd5 {[%clk
0:02:47.6]} 15... Nxd5 {[%clk 0:01:57.2]} 16. cxd5 {[%clk 0:02:48.5]} 16... Bf7
{[%clk 0:01:57.6]} 17. Bb2 {[%clk 0:02:42.7]} 17... Nf6 {[%clk 0:01:51.5]} 18.
e4 {[%clk 0:02:25.3]} 18... Qd7 {[%clk 0:01:50.2]} 19. Rbc1 {[%clk 0:02:18.9]}
19... Rbc8 {[%clk 0:01:49.6]} 20. d4 {[%clk 0:02:07.2]} 20... exd4 {[%clk
0:01:28]} 21. Bxd4 {[%clk 0:02:08.1]} 21... fxe4 {[%clk 0:01:20.5]} 22. Nxe4
{[%clk 0:01:59.8]} 22... Nxe4 {[%clk 0:01:13]} 23. Bxg7 {[%clk 0:01:57.2]} 23...
Kxg7 {[%clk 0:01:12.9]} 24. Qxe4 {[%clk 0:01:57.4]} 24... b6 {[%clk 0:01:01.6]}
25. Qd4+ {[%clk 0:01:53.2]} 25... Kg8 {[%clk 0:00:57.4]} 26. Qh4 {[%clk
0:01:52.7]} 26... h5 {[%clk 0:00:47.5]} 27. Bh3 {[%clk 0:01:50.2]} 27... Qd8
{[%clk 0:00:46.9]} 28. Bxc8 {[%clk 0:01:48]} 28... Qxc8 {[%clk 0:00:44.6]} 29.
Re7 {[%clk 0:01:46.2]} 29... Qf5 {[%clk 0:00:42]} 30. Rcxc7 {[%clk 0:01:40.9]}
30... Qb1+ {[%clk 0:00:40.3]} 31. Kg2 {[%clk 0:01:38.3]} 31... Bxd5+ {[%clk
0:00:40.3]} 32. f3 {[%clk 0:01:30.4]} 32... Bxf3+ {[%clk 0:00:39.6]} 33. Kf2
{[%clk 0:01:30]} 33... Be4+ {[%clk 0:00:26]} 34. Ke3 {[%clk 0:01:26.1]} 34...
Qd3# {[%clk 0:00:25.3]} 0-1

[Event "*** Titled Tuesday Blitz"]
[Site "Chess.com"]
[Date "2020.04.14"]
[Round "5"]
[White "IMRosen"]
[Black "1lec"]
[Result "1-0"]
[WhiteElo "2500"]
[BlackElo "2151"]
[TimeControl "180+1"]
[EndTime "10:49:25 PDT"]
[Termination "IMRosen won by resignation"]

1. d4 {[%clk 0:03:00.9]} 1... Nf6 {[%clk 0:02:59.7]} 2. Bf4 {[%clk 0:02:59.9]}
2... g6 {[%clk 0:02:59.7]} 3. Nc3 {[%clk 0:02:59]} 3... d5 {[%clk 0:02:58]} 4.
e3 {[%clk 0:02:59.4]} 4... Bg7 {[%clk 0:02:58.2]} 5. h4 {[%clk 0:02:59.3]} 5...
h6 {[%clk 0:02:48.5]} 6. Nf3 {[%clk 0:02:58.9]} 6... O-O {[%clk 0:02:46.9]} 7.
Ne5 {[%clk 0:02:56.8]} 7... Nbd7 {[%clk 0:02:43.1]} 8. Qf3 {[%clk 0:02:40.4]}
8... c6 {[%clk 0:02:20.7]} 9. Bd3 {[%clk 0:02:33.7]} 9... h5 {[%clk 0:01:44.7]}
10. Qg3 {[%clk 0:02:28.9]} 10... Nxe5 {[%clk 0:01:34.4]} 11. dxe5 {[%clk
0:02:21.9]} 11... Ng4 {[%clk 0:01:16]} 12. f3 {[%clk 0:01:56.2]} 12... Nh6
{[%clk 0:01:14.9]} 13. O-O-O {[%clk 0:01:56.2]} 13... Nf5 {[%clk 0:01:01.9]} 14.
Qh2 {[%clk 0:01:56.3]} 14... b5 {[%clk 0:00:49.6]} 15. g4 {[%clk 0:01:51.3]}
15... hxg4 {[%clk 0:00:34]} 16. fxg4 {[%clk 0:01:51.6]} 16... Nh6 {[%clk
0:00:34.3]} 17. Bxh6 {[%clk 0:01:33.2]} 17... Bxh6 {[%clk 0:00:33]} 18. g5
{[%clk 0:01:34]} 18... Bg7 {[%clk 0:00:30.4]} 19. h5 {[%clk 0:01:34.7]} 19...
Bf5 {[%clk 0:00:09]} 20. hxg6 {[%clk 0:01:21.1]} 20... fxg6 {[%clk 0:00:07]} 21.
e6 {[%clk 0:01:06.4]} 1-0

[Event "*** Titled Tuesday Blitz"]
[Site "Chess.com"]
[Date "2020.04.14"]
[Round "5"]
[White "swisspower96"]
[Black "Riptide27"]
[Result "1-0"]
[WhiteElo "2660"]
[BlackElo "2481"]
[TimeControl "180+1"]
[EndTime "10:49:27 PDT"]
[Termination "swisspower96 won by resignation"]

1. d4 {[%clk 0:03:00.9]} 1... d5 {[%clk 0:02:59.1]} 2. c4 {[%clk 0:03:01.2]}
2... e6 {[%clk 0:02:59.2]} 3. Nf3 {[%clk 0:03:01]} 3... Nf6 {[%clk 0:02:59]} 4.
g3 {[%clk 0:03:00.8]} 4... dxc4 {[%clk 0:02:57.9]} 5. Bg2 {[%clk 0:03:00.6]}
5... Bd7 {[%clk 0:02:58.2]} 6. Ne5 {[%clk 0:02:59.5]} 6... Bc6 {[%clk
0:02:58.2]} 7. Nxc6 {[%clk 0:02:59.8]} 7... Nxc6 {[%clk 0:02:58.6]} 8. O-O
{[%clk 0:03:00.5]} 8... Qd7 {[%clk 0:02:56.5]} 9. e3 {[%clk 0:03:00.7]} 9... Rd8
{[%clk 0:02:35.6]} 10. Qc2 {[%clk 0:02:34.2]} 10... b5 {[%clk 0:02:30.9]} 11. b3
{[%clk 0:02:28.7]} 11... Nb4 {[%clk 0:02:29.4]} 12. Qe2 {[%clk 0:02:28.4]} 12...
Nd3 {[%clk 0:02:26.1]} 13. a4 {[%clk 0:02:08]} 13... a6 {[%clk 0:01:50.3]} 14.
Nd2 {[%clk 0:01:58.6]} 14... c5 {[%clk 0:01:01.4]} 15. bxc4 {[%clk 0:01:57.4]}
15... Nxc1 {[%clk 0:01:00.4]} 16. Rfxc1 {[%clk 0:01:57.1]} 16... b4 {[%clk
0:01:00.2]} 17. Nb3 {[%clk 0:01:53.1]} 17... Qc7 {[%clk 0:00:54]} 18. Qf3 {[%clk
0:01:41.2]} 18... Rc8 {[%clk 0:00:46.1]} 19. Qb7 {[%clk 0:01:39.2]} 19... Be7
{[%clk 0:00:36.1]} 20. Qxa6 {[%clk 0:01:35.2]} 20... O-O {[%clk 0:00:35.6]} 21.
a5 {[%clk 0:01:35.7]} 21... Rfd8 {[%clk 0:00:18.7]} 22. Qb7 {[%clk 0:01:35.2]}
22... cxd4 {[%clk 0:00:17.8]} 23. exd4 {[%clk 0:01:34.2]} 23... Nd7 {[%clk
0:00:14.6]} 24. c5 {[%clk 0:01:26.6]} 24... Bf6 {[%clk 0:00:13.9]} 25. a6 {[%clk
0:01:25.4]} 25... Qxb7 {[%clk 0:00:12.7]} 26. Bxb7 {[%clk 0:01:24.2]} 26... Rc7
{[%clk 0:00:12.3]} 27. a7 {[%clk 0:01:18.8]} 1-0

[Event "*** Titled Tuesday Blitz"]
[Site "Chess.com"]
[Date "2020.04.14"]
[Round "5"]
[White "kekic76"]
[Black "Renegade_Hitman"]
[Result "1-0"]
[WhiteElo "2285"]
[BlackElo "1924"]
[TimeControl "180+1"]
[EndTime "10:49:28 PDT"]
[Termination "kekic76 won by resignation"]

1. e4 {[%clk 0:03:00.9]} 1... Nc6 {[%clk 0:03:00.2]} 2. Nf3 {[%clk 0:03:00.1]}
2... e5 {[%clk 0:02:58.3]} 3. Bb5 {[%clk 0:02:58.8]} 3... a6 {[%clk 0:02:57.7]}
4. Ba4 {[%clk 0:02:58.5]} 4... Nf6 {[%clk 0:02:57.2]} 5. O-O {[%clk 0:02:58.4]}
5... b5 {[%clk 0:02:55.8]} 6. Bb3 {[%clk 0:02:57.7]} 6... Be7 {[%clk 0:02:54.1]}
7. Re1 {[%clk 0:02:55.1]} 7... d6 {[%clk 0:02:54.1]} 8. c3 {[%clk 0:02:54.7]}
8... Na5 {[%clk 0:02:54.2]} 9. Bc2 {[%clk 0:02:53.2]} 9... c5 {[%clk 0:02:54.6]}
10. h3 {[%clk 0:02:52.2]} 10... Nc6 {[%clk 0:02:54.1]} 11. d4 {[%clk 0:02:51.6]}
11... Qc7 {[%clk 0:02:50]} 12. Nbd2 {[%clk 0:02:47.3]} 12... O-O {[%clk
0:02:49.1]} 13. Nf1 {[%clk 0:02:47.2]} 13... Re8 {[%clk 0:02:39.6]} 14. Ne3
{[%clk 0:02:47]} 14... cxd4 {[%clk 0:02:21.2]} 15. cxd4 {[%clk 0:02:46]} 15...
Nb4 {[%clk 0:02:21.3]} 16. Bb1 {[%clk 0:02:43.3]} 16... Bb7 {[%clk 0:02:21.2]}
17. a3 {[%clk 0:02:42.8]} 17... Nc6 {[%clk 0:02:12.5]} 18. d5 {[%clk 0:02:42.9]}
18... Na5 {[%clk 0:02:08.9]} 19. Nf5 {[%clk 0:02:43]} 19... Bf8 {[%clk
0:02:04.8]} 20. Bg5 {[%clk 0:02:42.5]} 20... Nd7 {[%clk 0:01:55]} 21. Nh2 {[%clk
0:02:28.2]} 21... f6 {[%clk 0:01:54.4]} 22. Be3 {[%clk 0:02:27.4]} 22... Nc4
{[%clk 0:01:48.1]} 23. b3 {[%clk 0:02:24.6]} 23... Nxe3 {[%clk 0:01:47]} 24.
Rxe3 {[%clk 0:02:24.5]} 24... g6 {[%clk 0:01:45.3]} 25. Rg3 {[%clk 0:02:21.8]}
25... Nc5 {[%clk 0:01:37.2]} 26. Ng4 {[%clk 0:02:17]} 26... Qd8 {[%clk
0:01:17.5]} 27. b4 {[%clk 0:02:10]} 27... Na4 {[%clk 0:01:16.4]} 28. Bc2 {[%clk
0:02:09.6]} 28... Nb2 {[%clk 0:01:12.1]} 29. Qf3 {[%clk 0:02:06.5]} 29... Bg7
{[%clk 0:00:44.7]} 30. Nfh6+ {[%clk 0:01:53]} 30... Bxh6 {[%clk 0:00:39.3]} 31.
Nxh6+ {[%clk 0:01:53]} 31... Kf8 {[%clk 0:00:27.5]} 32. Ng4 {[%clk 0:01:49.3]}
32... Kg7 {[%clk 0:00:26.7]} 33. h4 {[%clk 0:01:48.2]} 33... h5 {[%clk
0:00:25.4]} 34. Ne3 {[%clk 0:01:46.5]} 34... Nc4 {[%clk 0:00:23.8]} 35. Qxh5
{[%clk 0:01:43.3]} 35... g5 {[%clk 0:00:18.3]} 36. Nf5+ {[%clk 0:01:39.4]} 1-0

[Event "*** Titled Tuesday Blitz"]
[Site "Chess.com"]
[Date "2020.04.14"]
[Round "5"]
[White "katchesskat"]
[Black "MattyDPerrine"]
[Result "1-0"]
[WhiteElo "2178"]
[BlackElo "2324"]
[TimeControl "180+1"]
[EndTime "10:49:32 PDT"]
[Termination "katchesskat won by resignation"]

1. c4 {[%clk 0:03:00.3]} 1... c5 {[%clk 0:02:59.6]} 2. e3 {[%clk 0:03:01.2]}
2... Nf6 {[%clk 0:02:58.9]} 3. a3 {[%clk 0:03:02.1]} 3... Nc6 {[%clk 0:02:55.9]}
4. Qc2 {[%clk 0:03:02.6]} 4... e5 {[%clk 0:02:54.3]} 5. d3 {[%clk 0:03:02.5]}
5... d5 {[%clk 0:02:54.2]} 6. cxd5 {[%clk 0:03:03.4]} 6... Nxd5 {[%clk
0:02:55.1]} 7. Nd2 {[%clk 0:03:01.8]} 7... Be6 {[%clk 0:02:52]} 8. b3 {[%clk
0:03:01.5]} 8... Rc8 {[%clk 0:02:51.4]} 9. Bb2 {[%clk 0:03:01.7]} 9... b5 {[%clk
0:02:44.9]} 10. Rc1 {[%clk 0:03:01.2]} 10... f6 {[%clk 0:02:37.1]} 11. Be2
{[%clk 0:03:00.7]} 11... a5 {[%clk 0:02:25.2]} 12. Ngf3 {[%clk 0:02:59.6]} 12...
Nb6 {[%clk 0:02:24]} 13. O-O {[%clk 0:02:58.5]} 13... Be7 {[%clk 0:02:20.5]} 14.
Rfe1 {[%clk 0:02:58.4]} 14... O-O {[%clk 0:02:20.4]} 15. Ne4 {[%clk 0:02:55.7]}
15... Na7 {[%clk 0:01:50.9]} 16. Ned2 {[%clk 0:02:54]} 16... Qd7 {[%clk
0:01:44.9]} 17. h3 {[%clk 0:02:53.2]} 17... Rfd8 {[%clk 0:01:39]} 18. Qb1 {[%clk
0:02:49.2]} 18... a4 {[%clk 0:01:38.6]} 19. bxa4 {[%clk 0:02:48.6]} 19... Nxa4
{[%clk 0:01:39.2]} 20. Ba1 {[%clk 0:02:48.7]} 20... Rb8 {[%clk 0:01:38.2]} 21.
Red1 {[%clk 0:02:47.7]} 21... b4 {[%clk 0:01:32.5]} 22. axb4 {[%clk 0:02:43.8]}
22... Rxb4 {[%clk 0:01:32.9]} 23. Qc2 {[%clk 0:02:43.2]} 23... Nb5 {[%clk
0:01:32.1]} 24. Nc4 {[%clk 0:02:42.3]} 24... Rc8 {[%clk 0:01:08.3]} 25. Nfd2
{[%clk 0:02:29.9]} 25... Qe8 {[%clk 0:01:04.9]} 26. Bg4 {[%clk 0:02:26.2]} 26...
Bxg4 {[%clk 0:01:01.1]} 27. hxg4 {[%clk 0:02:27.1]} 27... Qg6 {[%clk 0:01:01.7]}
28. Qa2 {[%clk 0:02:19.7]} 28... Kh8 {[%clk 0:00:58.6]} 29. d4 {[%clk
0:02:02.4]} 29... exd4 {[%clk 0:00:47.2]} 30. exd4 {[%clk 0:02:01.5]} 30... cxd4
{[%clk 0:00:33.9]} 31. Ne5 {[%clk 0:02:00.7]} 31... Qe8 {[%clk 0:00:34]} 32.
Nf7+ {[%clk 0:01:58]} 32... Kg8 {[%clk 0:00:30.2]} 33. Rxc8 {[%clk 0:01:52.9]}
33... Qxc8 {[%clk 0:00:25.2]} 34. Nh6+ {[%clk 0:01:51.7]} 34... Kh8 {[%clk
0:00:20.9]} 35. Nf7+ {[%clk 0:01:50.7]} 35... Kg8 {[%clk 0:00:21.3]} 36. Nd6+
{[%clk 0:01:49.6]} 36... Qc4 {[%clk 0:00:18.4]} 37. N2xc4 {[%clk 0:01:47.9]}
37... Nbc3 {[%clk 0:00:17.9]} 38. Bxc3 {[%clk 0:01:42.8]} 38... Nxc3 {[%clk
0:00:18.8]} 39. Qa8+ {[%clk 0:01:42.2]} 39... Bf8 {[%clk 0:00:19.3]} 40. Qe8
{[%clk 0:01:39]} 1-0

[Event "*** Titled Tuesday Blitz"]
[Site "Chess.com"]
[Date "2020.04.14"]
[Round "5"]
[White "exoticprincess"]
[Black "chessdjw"]
[Result "1-0"]
[WhiteElo "2820"]
[BlackElo "2614"]
[TimeControl "180+1"]
[EndTime "10:49:33 PDT"]
[Termination "exoticprincess won on time"]

1. d4 {[%clk 0:03:00.9]} 1... Nf6 {[%clk 0:02:59.4]} 2. c4 {[%clk 0:02:58.3]}
2... g6 {[%clk 0:02:59.1]} 3. Nc3 {[%clk 0:02:58.3]} 3... d5 {[%clk 0:02:59]} 4.
Bg5 {[%clk 0:02:57.6]} 4... Bg7 {[%clk 0:02:57.8]} 5. e3 {[%clk 0:02:57.3]} 5...
Ne4 {[%clk 0:02:43.3]} 6. h4 {[%clk 0:02:55.2]} 6... c5 {[%clk 0:02:17.7]} 7.
cxd5 {[%clk 0:02:54.8]} 7... Nxc3 {[%clk 0:02:15.3]} 8. bxc3 {[%clk 0:02:55.7]}
8... Qxd5 {[%clk 0:02:13.3]} 9. Qf3 {[%clk 0:02:55.9]} 9... Qxf3 {[%clk
0:02:04]} 10. Nxf3 {[%clk 0:02:56.8]} 10... Nc6 {[%clk 0:02:03]} 11. Rb1 {[%clk
0:02:56.3]} 11... h6 {[%clk 0:02:00.5]} 12. Bf4 {[%clk 0:02:56.3]} 12... O-O
{[%clk 0:01:58.8]} 13. Bd3 {[%clk 0:02:50.8]} 13... Rd8 {[%clk 0:01:56]} 14. Ke2
{[%clk 0:02:49.9]} 14... b6 {[%clk 0:01:50.9]} 15. Be4 {[%clk 0:02:47.9]} 15...
Ba6+ {[%clk 0:01:39.6]} 16. Ke1 {[%clk 0:02:37.9]} 16... Rac8 {[%clk 0:01:39.8]}
17. Bg3 {[%clk 0:02:09.5]} 17... cxd4 {[%clk 0:01:38.7]} 18. cxd4 {[%clk
0:02:09.3]} 18... Nb4 {[%clk 0:01:33.5]} 19. Rxb4 {[%clk 0:02:04.8]} 19... Rc1+
{[%clk 0:01:33.1]} 20. Kd2 {[%clk 0:02:05.7]} 20... Rxh1 {[%clk 0:01:33.6]} 21.
Ra4 {[%clk 0:02:06.6]} 21... Bf1 {[%clk 0:01:18.5]} 22. Nh2 {[%clk 0:02:06.5]}
22... e5 {[%clk 0:01:02.5]} 23. Nxf1 {[%clk 0:02:01.4]} 23... Rxf1 {[%clk
0:00:55]} 24. Ke2 {[%clk 0:02:01.6]} 24... Rc1 {[%clk 0:00:40.8]} 25. dxe5
{[%clk 0:02:01.8]} 25... a5 {[%clk 0:00:37.8]} 26. e6 {[%clk 0:02:02.2]} 26...
fxe6 {[%clk 0:00:24.7]} 27. Bxg6 {[%clk 0:02:02]} 27... Rdc8 {[%clk 0:00:18.5]}
28. Re4 {[%clk 0:01:46.6]} 28... R8c6 {[%clk 0:00:15.9]} 29. Rg4 {[%clk
0:01:41.4]} 29... R1c4 {[%clk 0:00:15]} 30. Be4 {[%clk 0:01:39.9]} 30... R6c5
{[%clk 0:00:13.9]} 31. h5 {[%clk 0:01:37.8]} 31... Kf7 {[%clk 0:00:04.8]} 32.
Kf3 {[%clk 0:01:36]} 1-0